Workbook

Sheet Introduction
B3: KSU-Feeder Cattle Risk Management Tool
B5: An Excel spreadsheet for evaluating feeder cattle risk management strategies
L8: Version- 1.22.2025
B28: INTRODUCTION
B29: This spreadsheet was developed as a decision-aid tool for producers interested in managing feeder cattle price risk. It can be used to compare the Expected Net Selling Price using alternative risk management tools available for pricing feeder cattle.
B31: INSTRUCTIONS FOR THE USER:
B32: Be sure to "Enable Content" and "Enable Macros" for the spreadsheet to function correctly.
B33: In the Comparison sheet all blue numbers are input by the user. All black numbers are calculated using data provided by the user. The spreadsheet automatically recalculates every time an additional input is entered. Thus, it is important to wait until all data have been entered and reviewed before interpreting any of the calculated results (i.e., black numbers). Most of the input cells (i.e., blue number) have a red diamond in the upper right hand corner of the cell. By moving your mouse cursor over this diamond, a brief description of the input will be displayed on the screen.
B40: FOR MORE INFORMATION:
B41: To learn more about managing price risk and using LRP insurance visit www.AgManager.info or click on the following links:
C42: LRP Insurance Information | I42: Price Risk Management Information
B43: Updated by:
B45: Glynn T. Tonsor, Ph.D.
B46: Agricultural Economist
B47: Department of Agricultural Economics
B48: Kansas State University
B49: gtonsor@k-state.edu
B50: 785-532-1518
B52: ACKNOWLEDGEMENTS:
B53: This spreadsheet was originally developed by Kevin Dhuyvetter, Ph.D., Agricultural Economist, Kanasas State University. The authors gratefully acknowledge funding provided by USDA's Risk Management Agency (RMA) for initial development of this feeder cattle risk management tool.
B55: Copyright 2025 AgManager.info, K-State Department of Agricultural Economics

Sheet Comparison
B2: Comparison of Alternative Risk Management Strategies for Pricing Feeder Cattle
B4: Current date | H4: 2025-01-23 | L4: Futures | M4: LRP | N4: Put
B5: ="Number of head (number of head to match futures contract = "&FIXED(L117/H6,0)&")" -> Number of head (number of head to match futures contract = 91) | H5: 90 | J5: Number of contracts | L5: 1 | M5: 90 | N5: 1
B6: ="Expected weight at time of sale, lbs/head -- "&IF(H6<L115,"(use weight 1 for LRP)","(use weight 2 for LRP)") -> Expected weight at time of sale, lbs/head -- (use weight 1 for LRP) | H6: 550 | J6: Strike price(s), $/cwt | M6: 281.11 | N6: 268
B7: Pounds of cattle expected to sell in cash market, lbs | H7: =H5*H6 -> 49500 | J7: Premium, $/cwt | M7: =VLOOKUP(M6,B105:D117,3,1) -> 10.786 | N7: =VLOOKUP(N6,B22:D34,2,1) -> 14.075
B8: Expected sale date | H8: 2025-10-15 | M8: =IF(M5>H5,"Cannot buy LRP for more cattle than owned!","") -> 
B9: Feeder cattle type | H9: Steers | K9: Expected Net Selling Prices
J10: Futures
B11: CME futures contract for hedging (Jan, Mar, Apr, May, Aug, Sep, Oct, Nov) | H11: Oct | J11: price | K11: Cash | L11: Hedge | M11: LRP | N11: Put
B12: Commission for roundtrip (sell and buy) futures trade, $/contract | H12: 80 | J12: 240 | K12: =J12+H$15 -> 286.65 | L12: =IF(L$5=0,"n/a",(K12/100*H$7+((H$14-J12)*L$117/100-H$12)*L$5)/H$7*100) -> 315.6045455 | M12: =IF(OR(M$5=0,M$5>H$5),"n/a",(K12/100*H$7-M$7*H$6/100*M$5+IF(M$6>J12*L$113,(M$6-J12*L$113)*H$6/100*M$5,0))/H$7*100) -> 292.974 | N12: =IF(N$5=0,"n/a",(K12/100*H$7-(N$7*L$117/100+H$13)*N$5+IF(N$6>J12,((N$6-J12)*L$117/100-H$13)*N$5))/H$7*100) -> 300.5338384 | Q12: =MAX(K12:P12) -> 315.6045455
B13: Commission to buy or sell options contract, $/contract | H13: 45 | J13: =+J12+J$21 -> 245 | K13: 291.65 | L13: 315.5540404 | M13: =IF(OR(M$5=0,M$5>H$5),"n/a",(K13/100*H$7-M$7*H$6/100*M$5+IF(M$6>J13*L$113,(M$6-J13*L$113)*H$6/100*M$5,0))/H$7*100) -> 292.474 | N13: =IF(N$5=0,"n/a",(K13/100*H$7-(N$7*L$117/100+H$13)*N$5+IF(N$6>J13,((N$6-J13)*L$117/100-H$13)*N$5))/H$7*100) -> 300.4833333 | Q13: =MAX(K13:P13) -> 315.5540404
B14: ="Futures price -- "&H11&" CME feeder cattle contract, $/cwt*" -> Futures price -- Oct CME feeder cattle contract, $/cwt* | H14: 268.825 | J14: 250 | K14: 296.65 | L14: 315.5035354 | M14: 291.974 | N14: 300.4328283 | Q14: 315.5035354
B15: ="Expected basis (cash - "&H11&" CME futures), $/cwt#" -> Expected basis (cash - Oct CME futures), $/cwt# | H15: 46.65 | J15: 255 | K15: 301.65 | L15: 315.4530303 | M15: 291.474 | N15: 300.3823232 | Q15: 315.4530303
B16: LRP expected ending value for relevant time period^ | H16: 295.908 | J16: 260 | K16: 306.65 | L16: 315.4025253 | M16: 295.864 | N16: 300.3318182 | Q16: 315.4025253
B17: End date for LRP contract | H17: 2025-10-22 | J17: 265 | K17: 311.65 | L17: 315.3520202 | M17: 300.864 | N17: 300.2813131 | Q17: 315.3520202
J18: 270 | K18: 316.65 | L18: 315.3015152 | M18: 305.864 | N18: 302.3419192 | Q18: 316.65
B19: CME feeder cattle option premiums | F19: LRP coverage levels and premiums | J19: 275 | K19: 321.65 | L19: 315.2510101 | M19: 310.864 | N19: 307.3419192 | Q19: 321.65
B20: Strike price | C20: Put | D20: Call | F20: Coverage Level | H20: LRP cost | J20: 280 | K20: 326.65 | L20: 315.2005051 | M20: 315.864 | N20: 312.3419192 | Q20: 326.65
B21: $/cwt | C21: $/cwt | D21: $/cwt | F21: $/cwt | G21: -%- | H21: $/cwt | J21: 5 | K21: <= futures price increment | O21: Signifies maximum price in row
B22: =B23-2 -> 258 | F22: 295.91 | G22: =F22/H$16 -> 1.000006759 | H22: 17.511
B23: 260 | F23: 292.95 | G23: =F23/H$16 -> 0.9900036498 | H23: 15.924 | K23: Cash | L23: Futures Hedge | M23: ="LRP, ($"&FIXED(M6,0)&")" -> LRP, ($281) | N23: ="Put, ($"&FIXED(N6,0)&")" -> Put, ($268) | O23: ="Hedge & Call, ($"&FIXED(O6,0)&")" -> Hedge & Call, ($0) | P23: ="Put & Call, ($"&FIXED(P6,0)&"/$"&FIXED(Q6,0)&")" -> Put & Call, ($0/$0)
B24: 262 | F24: 289.99 | G24: 0.9800005407 | H24: 14.585
B25: 264 | F25: 287.03 | G25: 0.9699974316 | H25: 13.193
B26: 266 | C26: 13 | F26: 284.07 | G26: 0.9599943226 | H26: 11.878
B27: 268 | C27: 14.075 | F27: 281.11 | G27: 0.9499912135 | H27: 10.786
B28: =EVEN(ROUND(H14,0)) -> 270 | F28: 273.71 | G28: 0.9249834408 | H28: 8.204
B29: =B28+2 -> 272 | F29: 266.32 | G29: 0.9000094624 | H29: 6.14
B30: 274 | F30: 258.92 | G30: 0.8750016897 | H30: 4.722
B31: 276 | D31: 10 | F31: 251.52 | G31: 0.849993917 | H31: 3.527
B32: 278 | D32: 9.525 | F32: 236.73 | G32: 0.8000121659 | H32: 1.975
B33: 280 | F33: 221.93 | G33: 0.7499966206 | H33: 1.122
B34: 282 | F34: 221.93 | G34: 0.7499966206 | H34: 1.122
B36: # Websites with information on feeder cattle basis
B37: http://www.agmanager.info/livestock/marketing/graphs/
B38: http://www.beefbasis.com/
B39: * Website with futures prices and option premium quotes
B40: https://www.cmegroup.com/markets/agriculture/livestock/feeder-cattle.quotes.html
B41: ^ Website with LRP coverage levels and premiums
B42: https://www.rma.usda.gov/en/Information-Tools/Livestock-Reports
B44: FeederCattleRiskMgmtTool.xls
F45: Updated by: | G45: Glynn T. Tonsor, PhD
F46: Developed by: | G46: Kevin C. Dhuyvetter, PhD
B101: Data/information used in formulas above -- do not delete!
B103: LRP coverage level | D103: LRP cost | L103: Price | M103: Price
B104: $/cwt | C104: -%- | D104: $/cwt | F104: Feeder cattle type | H104: Type | J104: Weight | K104: Factor | L104: Adj. | M104: Inc.
B105: =F34 -> 221.93 | C105: =B105/H$16 -> 0.7499966206 | D105: =IF(H34=0,"n/a",H34) -> 1.122 | F105: Steers | G105: Weight 1 | H105: =IF(H$9=F105,1,0) -> 1 | J105: =IF(H$6<L$115,1,0) -> 1 | K105: =H105*J105 -> 1 | L105: 1.1 | M105: 2.2
B106: =F33 -> 221.93 | C106: 0.7499966206 | D106: =IF(H33=0,"n/a",H33) -> 1.122 | F106: Steers | G106: Weight 2 | H106: 1 | J106: =IF(H$6>=L$115,1,0) -> 0 | K106: =H106*J106 -> 0 | L106: 1 | M106: 2
B107: =F32 -> 236.73 | C107: 0.8000121659 | D107: =IF(H32=0,"n/a",H32) -> 1.975 | F107: Heifers | G107: Weight 1 | H107: 0 | J107: =IF(H$6<L$115,1,0) -> 1 | K107: 0 | L107: 1 | M107: 2
B108: =F31 -> 251.52 | C108: 0.849993917 | D108: =IF(H31=0,"n/a",H31) -> 3.527 | F108: Heifers | G108: Weight 2 | H108: 0 | J108: =IF(H$6>=L$115,1,0) -> 0 | K108: 0 | L108: 0.9 | M108: 1.8
B109: =F30 -> 258.92 | C109: 0.8750016897 | D109: =IF(H30=0,"n/a",H30) -> 4.722 | F109: Braham | G109: Weight 1 | H109: 0 | J109: =IF(H$6<L$115,1,0) -> 1 | K109: 0 | L109: 1 | M109: 2
B110: =F29 -> 266.32 | C110: 0.9000094624 | D110: =IF(H29=0,"n/a",H29) -> 6.14 | F110: Braham | G110: Weigh 2 | H110: 0 | J110: =IF(H$6>=L$115,1,0) -> 0 | K110: 0 | L110: 0.9 | M110: 1.8
B111: =F28 -> 273.71 | C111: 0.9249834408 | D111: =IF(H28=0,"n/a",H28) -> 8.204 | F111: Dairy | G111: Weight 1 | H111: 0 | J111: =IF(H$6<L$115,1,0) -> 1 | K111: 0 | L111: 1 | M111: 1.7
B112: =F27 -> 281.11 | C112: 0.9499912135 | D112: =IF(H27=0,"n/a",H27) -> 10.786 | F112: Dairy | G112: Weight 2 | H112: 0 | J112: =IF(H$6>=L$115,1,0) -> 0 | K112: 0 | L112: 0.8 | M112: 1.6
B113: =F26 -> 284.07 | C113: 0.9599943226 | D113: =IF(H26=0,"n/a",H26) -> 11.878 | F113: LRP adjustment factor used in formulas | L113: =SUMPRODUCT(K105:K112,L105:L112) -> 1.1 | M113: =SUMPRODUCT(K105:K112,M105:M112) -> 2.2
B114: =F25 -> 287.03 | C114: 0.9699974316 | D114: =IF(H25=0,"n/a",H25) -> 13.193
B115: =F24 -> 289.99 | C115: 0.9800005407 | D115: =IF(H24=0,"n/a",H24) -> 14.585 | F115: Minimum weight for Wt2 | L115: 600
B116: =F23 -> 292.95 | C116: 0.9900036498 | D116: =IF(H23=0,"n/a",H23) -> 15.924 | F116: Maximum weight for Wt2 | L116: 900
B117: =F22 -> 295.91 | C117: 1.000006759 | D117: =IF(H22=0,"n/a",H22) -> 17.511 | F117: Pounds per feeder cattle futures contract | L117: 50000
